[Event "Titled Tuesday Blitz January 31 Late 2023"]
[White "Tanenbaum, Zachary"]
[Black "Estrada Nieto, Julian"]
[WhiteFideId "2060850"]
[BlackFideId "5101018"]
[WhiteElo "2261"]
[BlackElo "2215"]
[Result "1-0"]
[Round "08"]
[TimeControl "180+2"]
[Date "2023.01.31"]
[WhiteClock "0:00:12"]
[BlackClock "0:00:03"]

1. e4 {[%clk 0:03:00]}  e5 {[%clk 0:02:59]} 2. Nf3 {[%clk 0:03:00]}  Nc6 {[%clk 0:03:00]} 3. Bc4 {[%clk 0:03:01]}  Bc5 {[%clk 0:02:59]} 4. c3 {[%clk 0:03:02]}  Nf6 {[%clk 0:02:59]} 5. d4 {[%clk 0:03:02]}  exd4 {[%clk 0:02:59]} 6. b4 {[%clk 0:03:03]}  Bb6 {[%clk 0:02:57]} 7. e5 {[%clk 0:03:03]}  d5 {[%clk 0:02:56]} 8. exf6 {[%clk 0:03:04]}  dxc4 {[%clk 0:02:55]} 9. Qe2+ {[%clk 0:03:05]}  Be6 {[%clk 0:02:53]} 10. b5 {[%clk 0:03:05]}  d3 {[%clk 0:02:21]} 11. Qe4 {[%clk 0:03:05]}  Qxf6 {[%clk 0:02:11]} 12. bxc6 {[%clk 0:03:04]}  O-O {[%clk 0:02:10]} 13. cxb7 {[%clk 0:03:01]}  Rae8 {[%clk 0:02:10]} 14. O-O {[%clk 0:02:46]}  Bf5 {[%clk 0:01:53]} 15. Qxc4 {[%clk 0:02:42]}  Re4 {[%clk 0:01:28]} 16. Qxd3 {[%clk 0:01:35]}  Rb4 {[%clk 0:01:23]} 17. Qd1 {[%clk 0:01:19]}  Rxb1 {[%clk 0:01:22]} 18. Rxb1 {[%clk 0:01:20]}  Bxb1 {[%clk 0:01:22]} 19. Bg5 {[%clk 0:01:16]}  Qc6 {[%clk 0:01:16]} 20. Qxb1 {[%clk 0:01:16]}  Qxb7 {[%clk 0:01:17]} 21. Be3 {[%clk 0:01:14]}  Rd8 {[%clk 0:01:15]} 22. Rd1 {[%clk 0:01:07]}  Re8 {[%clk 0:00:51]} 23. Ng5 {[%clk 0:00:57]}  g6 {[%clk 0:00:51]} 24. Qb3 {[%clk 0:00:48]}  c5 {[%clk 0:00:36]} 25. Bxc5 {[%clk 0:00:41]}  Qc7 {[%clk 0:00:17]} 26. Bxb6 {[%clk 0:00:41]}  axb6 {[%clk 0:00:17]} 27. g3 {[%clk 0:00:37]}  h6 {[%clk 0:00:16]} 28. Nf3 {[%clk 0:00:36]}  Re2 {[%clk 0:00:14]} 29. Re1 {[%clk 0:00:28]}  Rxe1+ {[%clk 0:00:12]} 30. Nxe1 {[%clk 0:00:29]}  Qe5 {[%clk 0:00:12]} 31. Nf3 {[%clk 0:00:29]}  Qe4 {[%clk 0:00:11]} 32. c4 {[%clk 0:00:28]}  h5 {[%clk 0:00:10]} 33. h4 {[%clk 0:00:26]}  Kg7 {[%clk 0:00:08]} 34. Qc3+ {[%clk 0:00:26]}  f6 {[%clk 0:00:08]} 35. a4 {[%clk 0:00:24]}  Qb1+ {[%clk 0:00:06]} 36. Kg2 {[%clk 0:00:22]}  Qe4 {[%clk 0:00:07]} 37. Qd4 {[%clk 0:00:22]}  Qc6 {[%clk 0:00:06]} 38. Qe3 {[%clk 0:00:13]}  Kf7 {[%clk 0:00:04]} 39. Qb3 {[%clk 0:00:12]}  Kg7 {[%clk 0:00:04]} 40. Qb5 {[%clk 0:00:12]}  Qe4 {[%clk 0:00:03]} 41. Qxb6 {[%clk 0:00:11]}  Qxc4 {[%clk 0:00:03]} 42. a5 {[%clk 0:00:12]}  Qe4 {[%clk 0:00:02]} 43. a6 {[%clk 0:00:12]}  g5 {[%clk 0:00:03]} 44. Qb7+ {[%clk 0:00:13]}  Kg6 {[%clk 0:00:03]} 45. Qxe4+ {[%clk 0:00:12]} 1-0


[Site "https://www.chess.com"]

[Event "Titled Tuesday Blitz January 31 Late 2023"]
[White "Martinez Ramirez, Lennis"]
[Black "Battlecruiser_Operational"]
[WhiteFideId "3509079"]
[WhiteElo "2426"]
[BlackElo "2419"]
[Result "1-0"]
[Round "08"]
[TimeControl "180+2"]
[Date "2023.01.31"]
[WhiteClock "0:00:15"]
[BlackClock "0:00:02"]

1. d4 {[%clk 0:03:00]}  e6 {[%clk 0:02:59]} 2. c4 {[%clk 0:03:01]}  f5 {[%clk 0:02:58]} 3. Nf3 {[%clk 0:03:02]}  Nf6 {[%clk 0:02:58]} 4. Nc3 {[%clk 0:03:03]}  Bb4 {[%clk 0:02:53]} 5. Qb3 {[%clk 0:02:59]}  Qe7 {[%clk 0:02:47]} 6. a3 {[%clk 0:02:58]}  Bxc3+ {[%clk 0:02:47]} 7. Qxc3 {[%clk 0:02:58]}  Ne4 {[%clk 0:02:42]} 8. Qc2 {[%clk 0:02:58]}  d6 {[%clk 0:02:42]} 9. g3 {[%clk 0:02:59]}  Nd7 {[%clk 0:02:42]} 10. Bg2 {[%clk 0:02:58]}  O-O {[%clk 0:02:41]} 11. O-O {[%clk 0:02:58]}  b6 {[%clk 0:02:41]} 12. Nd2 {[%clk 0:02:58]}  Nxd2 {[%clk 0:02:31]} 13. Bxd2 {[%clk 0:02:59]}  Rb8 {[%clk 0:02:29]} 14. e4 {[%clk 0:02:49]}  Bb7 {[%clk 0:02:22]} 15. Rae1 {[%clk 0:02:45]}  Qf6 {[%clk 0:02:13]} 16. Bc3 {[%clk 0:02:43]}  f4 {[%clk 0:01:47]} 17. gxf4 {[%clk 0:02:21]}  Qxf4 {[%clk 0:01:45]} 18. Bd2 {[%clk 0:02:20]}  Qf6 {[%clk 0:01:37]} 19. Be3 {[%clk 0:02:17]}  e5 {[%clk 0:01:33]} 20. d5 {[%clk 0:02:13]}  Qg6 {[%clk 0:01:17]} 21. Kh1 {[%clk 0:02:11]}  Nf6 {[%clk 0:01:14]} 22. f3 {[%clk 0:02:10]}  Bc8 {[%clk 0:01:07]} 23. Rg1 {[%clk 0:02:10]}  Qh5 {[%clk 0:01:04]} 24. Ref1 {[%clk 0:01:49]}  Bd7 {[%clk 0:00:50]} 25. Rf2 {[%clk 0:01:49]}  Rf7 {[%clk 0:00:45]} 26. b4 {[%clk 0:01:35]}  Rbf8 {[%clk 0:00:30]} 27. c5 {[%clk 0:01:36]}  Bh3 {[%clk 0:00:26]} 28. Bxh3 {[%clk 0:01:34]}  Qxh3 {[%clk 0:00:27]} 29. Rg3 {[%clk 0:01:35]}  Qh4 {[%clk 0:00:25]} 30. Bg5 {[%clk 0:01:10]}  Qh5 {[%clk 0:00:25]} 31. Bxf6 {[%clk 0:01:03]}  Rxf6 {[%clk 0:00:26]} 32. cxd6 {[%clk 0:01:03]}  cxd6 {[%clk 0:00:25]} 33. Qc7 {[%clk 0:01:01]}  Qf7 {[%clk 0:00:23]} 34. Qxf7+ {[%clk 0:00:48]}  R8xf7 {[%clk 0:00:24]} 35. Kg2 {[%clk 0:00:47]}  Rc7 {[%clk 0:00:24]} 36. Ra2 {[%clk 0:00:38]}  Rc4 {[%clk 0:00:20]} 37. b5 {[%clk 0:00:33]}  g6 {[%clk 0:00:17]} 38. a4 {[%clk 0:00:32]}  Rc5 {[%clk 0:00:16]} 39. Kh3 {[%clk 0:00:25]}  Rf7 {[%clk 0:00:16]} 40. Kg4 {[%clk 0:00:25]}  Kg7 {[%clk 0:00:16]} 41. Rgg2 {[%clk 0:00:24]}  Rf4+ {[%clk 0:00:13]} 42. Kg3 {[%clk 0:00:24]}  Rc3 {[%clk 0:00:13]} 43. Rgf2 {[%clk 0:00:22]}  Rxe4 {[%clk 0:00:13]} 44. a5 {[%clk 0:00:23]}  Rb4 {[%clk 0:00:12]} 45. axb6 {[%clk 0:00:24]}  axb6 {[%clk 0:00:12]} 46. Ra7+ {[%clk 0:00:24]}  Kh6 {[%clk 0:00:12]} 47. Rd7 {[%clk 0:00:25]}  Rxb5 {[%clk 0:00:10]} 48. Rxd6 {[%clk 0:00:26]}  Rd3 {[%clk 0:00:10]} 49. Re2 {[%clk 0:00:18]}  Rdxd5 {[%clk 0:00:10]} 50. Re6 {[%clk 0:00:19]}  Kg5 {[%clk 0:00:06]} 51. Re7 {[%clk 0:00:19]}  h5 {[%clk 0:00:06]} 52. h4+ {[%clk 0:00:19]}  Kf6 {[%clk 0:00:06]} 53. Rc7 {[%clk 0:00:19]}  Rb3 {[%clk 0:00:06]} 54. Rc6+ {[%clk 0:00:19]}  Kf5 {[%clk 0:00:06]} 55. Rc8 {[%clk 0:00:17]}  Rdd3 {[%clk 0:00:05]} 56. Rf8+ {[%clk 0:00:18]}  Ke6 {[%clk 0:00:05]} 57. Re8+ {[%clk 0:00:18]}  Kf7 {[%clk 0:00:06]} 58. R8xe5 {[%clk 0:00:17]}  Rxf3+ {[%clk 0:00:06]} 59. Kg2 {[%clk 0:00:17]}  Rg3+ {[%clk 0:00:06]} 60. Kf2 {[%clk 0:00:18]}  Rbf3+ {[%clk 0:00:05]} 61. Ke1 {[%clk 0:00:18]}  Rf5 {[%clk 0:00:04]} 62. Re7+ {[%clk 0:00:18]}  Kf8 {[%clk 0:00:04]} 63. Re8+ {[%clk 0:00:18]}  Kg7 {[%clk 0:00:04]} 64. R2e7+ {[%clk 0:00:18]}  Rf7 {[%clk 0:00:04]} 65. Re6 {[%clk 0:00:18]}  b5 {[%clk 0:00:03]} 66. Rb6 {[%clk 0:00:18]}  Rb3 {[%clk 0:00:03]} 67. Ree6 {[%clk 0:00:18]}  Rg3 {[%clk 0:00:01]} 68. Rxb5 {[%clk 0:00:18]}  Rf6 {[%clk 0:00:01]} 69. Rb7+ {[%clk 0:00:18]}  Rf7 {[%clk 0:00:02]} 70. Rbb6 {[%clk 0:00:19]}  Kh7 {[%clk 0:00:01]} 71. Ke2 {[%clk 0:00:19]}  Rg4 {[%clk 0:00:01]} 72. Ke3 {[%clk 0:00:19]}  Rxh4 {[%clk 0:00:02]} 73. Rxg6 {[%clk 0:00:19]}  Rh3+ {[%clk 0:00:03]} 74. Ke4 {[%clk 0:00:19]}  Rh4+ {[%clk 0:00:03]} 75. Ke5 {[%clk 0:00:19]}  Rh3 {[%clk 0:00:03]} 76. Rh6+ {[%clk 0:00:20]}  Kg7 {[%clk 0:00:04]} 77. Rbg6+ {[%clk 0:00:20]}  Kf8 {[%clk 0:00:04]} 78. Ra6 {[%clk 0:00:20]}  Re3+ {[%clk 0:00:04]} 79. Kd4 {[%clk 0:00:20]}  Rh3 {[%clk 0:00:04]} 80. Rag6 {[%clk 0:00:18]}  Ke7 {[%clk 0:00:04]} 81. Rh8 {[%clk 0:00:17]}  Rh4+ {[%clk 0:00:02]} 82. Ke5 {[%clk 0:00:17]}  Rg4 {[%clk 0:00:02]} 83. Re6+ {[%clk 0:00:17]}  Kd7 {[%clk 0:00:03]} 84. Ra6 {[%clk 0:00:17]}  Rg5+ {[%clk 0:00:02]} 85. Ke4 {[%clk 0:00:17]}  Rc5 {[%clk 0:00:02]} 86. Ra7+ {[%clk 0:00:15]} 1-0


[Site "https://www.chess.com"]

[Event "Titled Tuesday Blitz January 31 Late 2023"]
[White "Rosen, Eric"]
[Black "CheckBits"]
[WhiteFideId "2032562"]
[WhiteElo "2349"]
[BlackElo "2478"]
[Result "0-1"]
[Round "08"]
[TimeControl "180+2"]
[Date "2023.01.31"]
[WhiteClock "0:00:08"]
[BlackClock "0:00:15"]

1. d4 {[%clk 0:03:00]}  d5 {[%clk 0:02:58]} 2. Bf4 {[%clk 0:02:58]}  Nf6 {[%clk 0:02:51]} 3. e3 {[%clk 0:02:58]}  c5 {[%clk 0:02:47]} 4. Nf3 {[%clk 0:02:58]}  Nc6 {[%clk 0:02:46]} 5. Nbd2 {[%clk 0:02:57]}  cxd4 {[%clk 0:02:45]} 6. exd4 {[%clk 0:02:58]}  Bg4 {[%clk 0:02:43]} 7. c3 {[%clk 0:02:53]}  e6 {[%clk 0:02:43]} 8. Be2 {[%clk 0:02:54]}  Bd6 {[%clk 0:02:42]} 9. Bxd6 {[%clk 0:02:54]}  Qxd6 {[%clk 0:02:42]} 10. O-O {[%clk 0:02:55]}  O-O {[%clk 0:02:42]} 11. h3 {[%clk 0:02:54]}  Bh5 {[%clk 0:02:41]} 12. Re1 {[%clk 0:02:54]}  Rab8 {[%clk 0:02:39]} 13. a4 {[%clk 0:02:54]}  a6 {[%clk 0:02:34]} 14. a5 {[%clk 0:02:54]}  Rfc8 {[%clk 0:02:31]} 15. Ne5 {[%clk 0:02:49]}  Nxe5 {[%clk 0:02:20]} 16. dxe5 {[%clk 0:01:54]}  Qxe5 {[%clk 0:02:13]} 17. g4 {[%clk 0:01:54]}  Bg6 {[%clk 0:02:11]} 18. Bxa6 {[%clk 0:01:53]}  Qf4 {[%clk 0:02:01]} 19. Bf1 {[%clk 0:01:53]}  h5 {[%clk 0:01:47]} 20. Ra4 {[%clk 0:01:52]}  Qc7 {[%clk 0:01:39]} 21. Qf3 {[%clk 0:01:37]}  Ra8 {[%clk 0:01:37]} 22. Rea1 {[%clk 0:01:35]}  hxg4 {[%clk 0:01:36]} 23. hxg4 {[%clk 0:01:35]}  Nd7 {[%clk 0:01:35]} 24. g5 {[%clk 0:01:23]}  Bc2 {[%clk 0:01:28]} 25. Rh4 {[%clk 0:01:16]}  Ne5 {[%clk 0:01:11]} 26. Qg3 {[%clk 0:00:51]}  Ng6 {[%clk 0:01:05]} 27. Qxc7 {[%clk 0:00:50]}  Rxc7 {[%clk 0:01:05]} 28. Rb4 {[%clk 0:00:51]}  Rc5 {[%clk 0:00:46]} 29. Rxb7 {[%clk 0:00:17]}  Rcxa5 {[%clk 0:00:46]} 30. Rxa5 {[%clk 0:00:17]}  Rxa5 {[%clk 0:00:46]} 31. Rb8+ {[%clk 0:00:17]}  Kh7 {[%clk 0:00:46]} 32. Rb7 {[%clk 0:00:14]}  d4 {[%clk 0:00:39]} 33. Nf3 {[%clk 0:00:05]}  Ra1 {[%clk 0:00:24]} 34. Kg2 {[%clk 0:00:02]}  Be4 {[%clk 0:00:24]} 35. Be2 {[%clk 0:00:02]}  Bxb7 {[%clk 0:00:23]} 36. cxd4 {[%clk 0:00:02]}  Nh4+ {[%clk 0:00:22]} 37. Kg3 {[%clk 0:00:02]}  Nxf3 {[%clk 0:00:22]} 38. Bd3+ {[%clk 0:00:02]}  g6 {[%clk 0:00:22]} 39. Kf4 {[%clk 0:00:02]}  Nxd4 {[%clk 0:00:19]} 40. Ke5 {[%clk 0:00:03]}  Nc6+ {[%clk 0:00:18]} 41. Kf6 {[%clk 0:00:03]}  Kg8 {[%clk 0:00:18]} 42. f4 {[%clk 0:00:02]}  Ra4 {[%clk 0:00:17]} 43. f5 {[%clk 0:00:02]}  exf5 {[%clk 0:00:16]} 44. b4 {[%clk 0:00:02]}  Rxb4 {[%clk 0:00:15]} 45. Bc2 {[%clk 0:00:01]}  Nd4 {[%clk 0:00:15]} 46. Be4 {[%clk 0:00:01]}  Rb6+ {[%clk 0:00:15]} 47. Ke5 {[%clk 0:00:01]}  Re6+ {[%clk 0:00:15]} 48. Kf4 {[%clk 0:00:01]}  Rxe4+ {[%clk 0:00:16]} 49. Kg3 {[%clk 0:00:01]}  Rg4+ {[%clk 0:00:16]} 50. Kh3 {[%clk 0:00:01]}  Rxg5 {[%clk 0:00:16]} 51. Kh4 {[%clk 0:00:01]}  Rg4+ {[%clk 0:00:16]} 52. Kh3 {[%clk 0:00:01]}  f6 {[%clk 0:00:14]} 53. Kh2 {[%clk 0:00:02]}  Nf3+ {[%clk 0:00:13]} 54. Kh3 {[%clk 0:00:02]}  Ng5+ {[%clk 0:00:13]} 55. Kh2 {[%clk 0:00:02]}  Rg2+ {[%clk 0:00:13]} 56. Kh1 {[%clk 0:00:02]}  Rg4+ {[%clk 0:00:11]} 57. Kh2 {[%clk 0:00:02]}  Rg2+ {[%clk 0:00:12]} 58. Kh1 {[%clk 0:00:02]}  Rb2+ {[%clk 0:00:12]} 59. Kg1 {[%clk 0:00:03]}  Nh3+ {[%clk 0:00:11]} 60. Kf1 {[%clk 0:00:03]}  Rg2 {[%clk 0:00:11]} 61. Ke1 {[%clk 0:00:03]}  f4 {[%clk 0:00:12]} 62. Kf1 {[%clk 0:00:03]}  f5 {[%clk 0:00:12]} 63. Ke1 {[%clk 0:00:04]}  g5 {[%clk 0:00:13]} 64. Kf1 {[%clk 0:00:05]}  g4 {[%clk 0:00:14]} 65. Ke1 {[%clk 0:00:06]}  f3 {[%clk 0:00:14]} 66. Kf1 {[%clk 0:00:07]}  f4 {[%clk 0:00:15]} 67. Ke1 {[%clk 0:00:07]}  Ba6 {[%clk 0:00:13]} 68. Kd1 {[%clk 0:00:07]}  Re2 {[%clk 0:00:14]} 69. Kc1 {[%clk 0:00:07]}  f2 {[%clk 0:00:14]} 70. Kd1 {[%clk 0:00:08]}  f1=Q# {[%clk 0:00:15]} 0-1


[Site "https://www.chess.com"]

[Event "Titled Tuesday Blitz January 31 Late 2023"]
[White "Kavutskiy, Konstantin"]
[Black "Dzida, Kamil"]
[WhiteFideId "2026384"]
[BlackFideId "21828652"]
[WhiteElo "2414"]
[BlackElo "2352"]
[Result "1-0"]
[Round "08"]
[TimeControl "180+2"]
[Date "2023.01.31"]
[WhiteClock "0:02:08"]
[BlackClock "0:02:15"]

1. d4 {[%clk 0:03:00]}  Nf6 {[%clk 0:03:00]} 2. Bg5 {[%clk 0:03:00]}  d5 {[%clk 0:02:49]} 3. Nd2 {[%clk 0:02:59]}  Nbd7 {[%clk 0:02:47]} 4. e3 {[%clk 0:02:57]}  h6 {[%clk 0:02:47]} 5. Bh4 {[%clk 0:02:57]}  c5 {[%clk 0:02:47]} 6. c3 {[%clk 0:02:56]}  b6 {[%clk 0:02:47]} 7. Bd3 {[%clk 0:02:56]}  Bb7 {[%clk 0:02:47]} 8. f4 {[%clk 0:02:55]}  Ne4 {[%clk 0:02:43]} 9. Nxe4 {[%clk 0:02:48]}  dxe4 {[%clk 0:02:43]} 10. Bb5 {[%clk 0:02:47]}  a6 {[%clk 0:02:42]} 11. Ba4 {[%clk 0:02:41]}  b5 {[%clk 0:02:42]} 12. Bc2 {[%clk 0:02:41]}  Qc7 {[%clk 0:02:37]} 13. Qg4 {[%clk 0:02:36]}  cxd4 {[%clk 0:02:24]} 14. exd4 {[%clk 0:02:34]}  Nf6 {[%clk 0:02:24]} 15. Bxf6 {[%clk 0:02:32]}  exf6 {[%clk 0:02:22]} 16. Ne2 {[%clk 0:02:31]}  g6 {[%clk 0:02:21]} 17. O-O {[%clk 0:02:26]}  f5 {[%clk 0:02:21]} 18. Qg3 {[%clk 0:02:19]}  Bg7 {[%clk 0:02:22]} 19. Bb3 {[%clk 0:02:19]}  O-O {[%clk 0:02:21]} 20. Qxg6 {[%clk 0:02:14]}  Qd7 {[%clk 0:02:15]} 21. Ng3 {[%clk 0:02:08]} 1-0


[Site "https://www.chess.com"]

[Event "Titled Tuesday Blitz January 31 Late 2023"]
[White "Denishev, Marat"]
[Black "Llanos, Guillermo"]
[WhiteFideId "24131563"]
[BlackFideId "100358"]
[WhiteElo "2255"]
[BlackElo "2290"]
[Result "0-1"]
[Round "08"]
[TimeControl "180+2"]
[Date "2023.01.31"]
[WhiteClock "0:02:27"]
[BlackClock "0:02:00"]

1. e4 {[%clk 0:02:59]}  Nf6 {[%clk 0:02:59]} 2. e5 {[%clk 0:02:58]}  Nd5 {[%clk 0:02:59]} 3. d4 {[%clk 0:02:58]}  d6 {[%clk 0:02:59]} 4. Nf3 {[%clk 0:02:58]}  Nb6 {[%clk 0:02:59]} 5. c4 {[%clk 0:02:55]}  g6 {[%clk 0:02:57]} 6. Nc3 {[%clk 0:02:55]}  Bg7 {[%clk 0:02:56]} 7. Bf4 {[%clk 0:02:56]}  O-O {[%clk 0:02:55]} 8. Be2 {[%clk 0:02:56]}  Nc6 {[%clk 0:02:54]} 9. exd6 {[%clk 0:02:55]}  cxd6 {[%clk 0:02:54]} 10. O-O {[%clk 0:02:54]}  Bg4 {[%clk 0:02:53]} 11. d5 {[%clk 0:02:54]}  Bxf3 {[%clk 0:02:50]} 12. Bxf3 {[%clk 0:02:53]}  Na5 {[%clk 0:02:40]} 13. Rc1 {[%clk 0:02:39]}  Naxc4 {[%clk 0:02:39]} 14. b3 {[%clk 0:02:39]}  Ne5 {[%clk 0:02:38]} 15. Be2 {[%clk 0:02:37]}  a6 {[%clk 0:02:35]} 16. Be3 {[%clk 0:02:37]}  Rc8 {[%clk 0:02:29]} 17. f4 {[%clk 0:02:36]}  Ned7 {[%clk 0:02:28]} 18. Bf3 {[%clk 0:02:34]}  Rxc3 {[%clk 0:02:22]} 19. Rxc3 {[%clk 0:02:33]}  Bxc3 {[%clk 0:02:21]} 20. Qd3 {[%clk 0:02:34]}  Bb4 {[%clk 0:02:17]} 21. Rc1 {[%clk 0:02:34]}  Bc5 {[%clk 0:02:16]} 22. h4 {[%clk 0:02:32]}  Bxe3+ {[%clk 0:02:16]} 23. Qxe3 {[%clk 0:02:33]}  Nf6 {[%clk 0:02:11]} 24. h5 {[%clk 0:02:30]}  Nbxd5 {[%clk 0:02:10]} 25. Bxd5 {[%clk 0:02:30]}  Nxd5 {[%clk 0:02:09]} 26. Qe4 {[%clk 0:02:30]}  Nf6 {[%clk 0:02:07]} 27. Qxb7 {[%clk 0:02:30]}  Nxh5 {[%clk 0:02:06]} 28. Qxa6 {[%clk 0:02:31]}  Nxf4 {[%clk 0:02:04]} 29. Rf1 {[%clk 0:02:30]}  Ne6 {[%clk 0:02:03]} 30. Qc4 {[%clk 0:02:30]}  Qc7 {[%clk 0:02:01]} 31. Qe4 {[%clk 0:02:27]}  Qa7+ {[%clk 0:02:00]} 0-1


[Site "https://www.chess.com"]

[Event "Titled Tuesday Blitz January 31 Late 2023"]
[White "Kostiukov, Alexandr"]
[Black "Womacka, Mathias"]
[WhiteFideId "14108100"]
[BlackFideId "4611390"]
[WhiteElo "2271"]
[BlackElo "2396"]
[Result "1-0"]
[Round "08"]
[TimeControl "180+2"]
[Date "2023.01.31"]
[WhiteClock "0:00:09"]
[BlackClock "0:00:32"]

1. g3 {[%clk 0:03:00]}  c5 {[%clk 0:02:59]} 2. Bg2 {[%clk 0:03:01]}  Nc6 {[%clk 0:02:59]} 3. c4 {[%clk 0:03:00]}  g6 {[%clk 0:02:59]} 4. Nf3 {[%clk 0:03:01]}  Bg7 {[%clk 0:03:00]} 5. O-O {[%clk 0:03:02]}  e5 {[%clk 0:02:59]} 6. Nc3 {[%clk 0:03:01]}  Nge7 {[%clk 0:02:59]} 7. d3 {[%clk 0:03:01]}  d6 {[%clk 0:03:00]} 8. Bd2 {[%clk 0:03:01]}  O-O {[%clk 0:02:58]} 9. a3 {[%clk 0:03:01]}  h6 {[%clk 0:02:53]} 10. Rb1 {[%clk 0:03:01]}  a5 {[%clk 0:02:53]} 11. Ne1 {[%clk 0:03:00]}  Be6 {[%clk 0:02:51]} 12. Nc2 {[%clk 0:03:00]}  d5 {[%clk 0:02:52]} 13. cxd5 {[%clk 0:02:58]}  Nxd5 {[%clk 0:02:53]} 14. Ne3 {[%clk 0:02:57]}  Nde7 {[%clk 0:02:52]} 15. Nb5 {[%clk 0:02:39]}  b6 {[%clk 0:02:43]} 16. Nc4 {[%clk 0:02:36]}  Rb8 {[%clk 0:02:42]} 17. Bc3 {[%clk 0:02:22]}  Qd7 {[%clk 0:02:36]} 18. a4 {[%clk 0:02:01]}  Nd5 {[%clk 0:02:22]} 19. Bd2 {[%clk 0:01:51]}  Ndb4 {[%clk 0:02:20]} 20. b3 {[%clk 0:01:40]}  Kh7 {[%clk 0:02:10]} 21. Bc3 {[%clk 0:01:38]}  Nd4 {[%clk 0:01:52]} 22. Nxd4 {[%clk 0:01:23]}  exd4 {[%clk 0:01:53]} 23. Bxb4 {[%clk 0:01:21]}  axb4 {[%clk 0:01:53]} 24. Qd2 {[%clk 0:01:16]}  Rfe8 {[%clk 0:01:53]} 25. Qf4 {[%clk 0:01:15]}  Bxc4 {[%clk 0:01:41]} 26. dxc4 {[%clk 0:01:15]}  Rbd8 {[%clk 0:01:38]} 27. Be4 {[%clk 0:01:09]}  Qd6 {[%clk 0:01:25]} 28. Qxd6 {[%clk 0:00:57]}  Rxd6 {[%clk 0:01:26]} 29. Bd3 {[%clk 0:00:54]}  h5 {[%clk 0:01:26]} 30. f4 {[%clk 0:00:50]}  Re3 {[%clk 0:01:21]} 31. Kg2 {[%clk 0:00:49]}  Bh6 {[%clk 0:01:18]} 32. Rf3 {[%clk 0:00:44]}  Re7 {[%clk 0:01:14]} 33. Ra1 {[%clk 0:00:42]}  Ra7 {[%clk 0:01:11]} 34. f5 {[%clk 0:00:38]}  Kg7 {[%clk 0:01:10]} 35. Raf1 {[%clk 0:00:35]}  Be3 {[%clk 0:01:01]} 36. h3 {[%clk 0:00:25]}  g5 {[%clk 0:00:56]} 37. f6+ {[%clk 0:00:23]}  Kh6 {[%clk 0:00:55]} 38. Rf5 {[%clk 0:00:23]}  Ra8 {[%clk 0:00:47]} 39. h4 {[%clk 0:00:21]}  gxh4 {[%clk 0:00:44]} 40. Rh1 {[%clk 0:00:19]}  Rg8 {[%clk 0:00:42]} 41. Rxh4 {[%clk 0:00:19]}  Rg5 {[%clk 0:00:43]} 42. Rf3 {[%clk 0:00:09]}  Re6 {[%clk 0:00:40]} 43. Kh3 {[%clk 0:00:09]}  Bd2 {[%clk 0:00:34]} 44. g4 {[%clk 0:00:08]}  Rxg4 {[%clk 0:00:33]} 45. Rxg4 {[%clk 0:00:09]}  hxg4+ {[%clk 0:00:33]} 46. Kxg4 {[%clk 0:00:10]}  Re5 {[%clk 0:00:32]} 47. Rh3+ {[%clk 0:00:09]} 1-0


[Site "https://www.chess.com"]